fUSD/lending_fUSD_20240915
["ID","MTS","AMOUNT","RATE_DAILY","PERIOD"]
[338200082,1726384244708,-500.0,0.00012989,2]
[338200084,1726384244718,-500.0,0.00012989,2]
[338200085,1726384244728,-960.8,0.00012989,2]
[338200087,1726384244739,-500.0,0.00012989,2]
[338200089,1726384244751,-651.8,0.00012989,2]
[338200092,1726384244762,-500.0,0.00012989,2]
[338200094,1726384244771,-500.0,0.00012989,2]
[338200096,1726384244780,-500.0,0.00012989,2]
[338200098,1726384244790,-500.0,0.00012989,2]
[338200100,1726384244800,-500.0,0.00012989,2]
[338200102,1726384244810,-500.0,0.00012989,2]
[338200104,1726384244819,-500.0,0.00012989,2]
[338200106,1726384244830,-500.0,0.00012989,2]
[338200108,1726384244841,-1759.75,0.00012989,2]
[338200110,1726384244851,-500.0,0.00012989,2]
[338200112,1726384244860,-500.0,0.00012989,2]
[338200114,1726384244870,-2314.24,0.00012989,2]
[338200116,1726384244879,-175.50305101,0.00012989,2]
[338200118,1726384244889,-500.0,0.00012989,2]
[338200120,1726384244899,-4710.25,0.00012989,2]
[338200122,1726384244910,-946.91,0.00012989,2]
[338200124,1726384244920,-1561.76,0.00012989,2]
[338200126,1726384244931,-919.32,0.00012989,2]
[338200128,1726384244942,-1735.96,0.00012989,2]
[338200130,1726384244952,-730.95,0.00012989,2]
[338200132,1726384244961,-1190.21,0.00012989,2]
[338200134,1726384244971,-1522.56,0.00012989,2]
[338200137,1726384244982,-500.0,0.00012989,2]
[338200138,1726384244991,-534.09,0.00012989,2]
[338200140,1726384245001,-1423.6,0.00012989,2]
[338200142,1726384245010,-500.0,0.00012989,2]
[338200145,1726384245019,-1779.41,0.00012989,2]
[338200146,1726384245029,-500.0,0.00012989,2]
[338200148,1726384245039,-661.77,0.00012989,2]
[338200151,1726384245048,-2149.9,0.00012989,2]
[338200153,1726384245060,-2241.87,0.00012989,2]
[338200155,1726384245071,-644.67,0.00012989,2]
[338200157,1726384245081,-805.31,0.00012989,2]
[338200159,1726384245091,-1753.68,0.00012989,2]
[338200161,1726384245101,-500.0,0.00012989,2]
[338200163,1726384245112,-500.0,0.00012989,2]
[338200165,1726384245123,-500.0,0.00012989,2]
[338200167,1726384245137,-500.0,0.00012989,2]
[338200169,1726384245148,-871.41,0.00012989,2]
[338200171,1726384245158,-765.01,0.00012989,2]
[338200173,1726384245169,-930.7,0.00012989,2]
[338200175,1726384245179,-602.47,0.00012989,2]
[338200178,1726384245190,-500.0,0.00012989,2]
[338200180,1726384245200,-500.0,0.00012989,2]
[338200182,1726384245212,-663.37,0.00012989,2]
[338200184,1726384245223,-853.24,0.00012989,2]
[338200186,1726384245232,-500.0,0.00012989,2]
[338200188,1726384245242,-1259.57,0.00012989,2]
[338200190,1726384245255,-500.0,0.00012989,2]
[338200192,1726384245266,-500.0,0.00012989,2]
[338200194,1726384245276,-675.34,0.00012989,2]
[338200196,1726384245286,-1180.28,0.00012989,2]
[338200199,1726384245298,-500.0,0.00012989,2]
[338200201,1726384245309,-670.44,0.00012989,2]
[338200203,1726384245319,-500.92619684,0.00012989,2]
[338200205,1726384245329,-500.0,0.00012989,2]
[338200207,1726384245339,-500.0,0.00012989,2]
[338200209,1726384245349,-500.0,0.00012989,2]
[338200211,1726384245359,-500.0,0.00012989,2]
[338200213,1726384245369,-500.0,0.00012989,2]
[338200215,1726384245379,-870.2,0.00012989,2]
[338200217,1726384245390,-1115.36,0.00012989,2]
[338200219,1726384245399,-1307.99,0.00012989,2]
[338200222,1726384245412,-795.96,0.00012989,2]
[338200224,1726384245422,-500.0,0.00012989,2]
[338200226,1726384245433,-1077.35,0.00012989,2]
[338200228,1726384245443,-1431.0,0.00012989,2]
[338200230,1726384245452,-2588.49,0.00012989,2]
[338200232,1726384245462,-923.24,0.00012989,2]
[338200234,1726384245471,-3439.6,0.00012989,2]
[338200236,1726384245481,-1122.97,0.00012989,2]
[338200237,1726384245491,-500.0,0.00012989,2]
[338200240,1726384245501,-500.0,0.00012989,2]
[338200242,1726384245512,-1162.17,0.00012989,2]
[338200244,1726384245522,-754.68,0.00012989,2]
[338200246,1726384245531,-807.95,0.00012989,2]
[338200248,1726384245541,-500.0,0.00012989,2]
[338200250,1726384245551,-500.0,0.00012989,2]
[338200252,1726384245560,-696.51,0.00012989,2]
[338200254,1726384245570,-1754.54,0.00012989,2]
[338200256,1726384245580,-1583.63,0.00012989,2]
[338200258,1726384245590,-1220.55,0.00012989,2]
[338200260,1726384245599,-1279.88,0.00012989,2]
[338200262,1726384245609,-773.25,0.00012989,2]
[338200264,1726384245619,-699.17,0.00012989,2]
[338200266,1726384245628,-1577.29,0.00012989,2]
[338200268,1726384245638,-1057.82,0.00012989,2]
[338200270,1726384245647,-2157.55,0.00012989,2]
[338200272,1726384245656,-755.72,0.00012989,2]
[338200274,1726384245667,-1885.83,0.00012989,2]
[338200276,1726384245676,-500.0,0.00012989,2]
[338200278,1726384245686,-887.99,0.00012989,2]
[338200280,1726384245695,-886.33,0.00012989,2]
[338200282,1726384245705,-500.0,0.00012989,2]
[338200284,1726384245715,-500.0,0.00012989,2]
[338200286,1726384245724,-500.0,0.00012989,2]
[338200288,1726384245735,-1737.51,0.00012989,2]
[338200290,1726384245745,-500.0,0.00012989,2]
[338200292,1726384245755,-836.85,0.00012989,2]
[338200294,1726384245765,-1041.98,0.00012989,2]
[338200296,1726384245775,-500.0,0.00012989,2]
[338200298,1726384245784,-500.0,0.00012989,2]
[338200300,1726384245794,-861.2,0.00012989,2]
[338200302,1726384245803,-1680.61,0.00012989,2]
[338200304,1726384245813,-500.0,0.00012989,2]
[338200306,1726384245823,-344.2963428,0.00012989,2]
[338200308,1726384245832,-1614.78,0.00012989,2]
[338200310,1726384245842,-1823.89,0.00012989,2]
[338200312,1726384245852,-500.0,0.00012989,2]
[338200314,1726384245862,-1585.24,0.00012989,2]
[338200316,1726384245871,-500.0,0.00012989,2]
[338200318,1726384245880,-780.07,0.00012989,2]
[338200320,1726384245890,-980.4,0.00012989,2]
[338200322,1726384245900,-500.0,0.00012989,2]
[338200324,1726384245910,-563.1,0.00012989,2]
[338200326,1726384245919,-500.0,0.00012989,2]
[338200328,1726384245929,-890.91,0.00012989,2]
[338200330,1726384245939,-1933.97,0.00012989,2]
[338200332,1726384245949,-1032.33,0.00012989,2]
[338200334,1726384245959,-500.0,0.00012989,2]
[338200336,1726384245969,-623.79696376,0.00012989,2]
[338200339,1726384245979,-811.29,0.00012989,2]
[338200341,1726384245989,-1611.34,0.00012989,2]
[338200343,1726384245999,-1135.02,0.00012989,2]
[338200345,1726384246010,-500.0,0.00012989,2]
[338200347,1726384246020,-897.88,0.00012989,2]
[338200349,1726384246030,-708.32,0.00012989,2]
[338200351,1726384246039,-1414.77,0.00012989,2]
[338200353,1726384246049,-500.0,0.00012989,2]
[338200355,1726384246061,-500.0,0.00012989,2]
[338200357,1726384246071,-2073.75,0.00012989,2]
[338200359,1726384246082,-991.09,0.00012989,2]
[338200361,1726384246092,-500.0,0.00012989,2]
[338200363,1726384246102,-500.0,0.00012989,2]
[338200365,1726384246112,-1216.09,0.00012989,2]
[338200367,1726384246122,-960.23,0.00012989,2]
[338200369,1726384246135,-1340.41,0.00012989,2]
[338200371,1726384246145,-1757.91,0.00012989,2]
[338200373,1726384246154,-500.0,0.00012989,2]
[338200375,1726384246164,-1317.85,0.00012989,2]
[338200377,1726384246173,-530.79570594,0.00012989,2]
[338200379,1726384246183,-500.0,0.00012989,2]
[338200381,1726384246193,-500.0,0.00012989,2]
[338200383,1726384246203,-519.51506005,0.00012989,2]
[338200385,1726384246213,-500.0,0.00012989,2]
[338200388,1726384246225,-534.25,0.00012989,2]
[338200390,1726384246236,-747.33,0.00012989,2]
[338200392,1726384246254,-2268.84,0.00012989,2]
[338200394,1726384246265,-500.0,0.00012989,2]
[338200396,1726384246274,-564.16,0.00012989,2]
[338200398,1726384246284,-1113.0,0.00012989,2]
[338200400,1726384246293,-500.0,0.00012989,2]
[338200402,1726384246303,-870.34,0.00012989,2]
[338200404,1726384246312,-534.41,0.00012989,2]
[338200406,1726384246322,-586.59,0.00012989,2]
[338200408,1726384246331,-642.55,0.00012989,2]
[338200410,1726384246340,-500.0,0.00012989,2]
[338200412,1726384246350,-500.0,0.00012989,2]
[338200414,1726384246361,-812.35,0.00012989,2]
[338200416,1726384246370,-1375.7,0.00012989,2]
[338200418,1726384246380,-500.0,0.00012989,2]
[338200420,1726384246389,-1395.42,0.00012989,2]
[338200422,1726384246399,-1022.52,0.00012989,2]
[338200424,1726384246409,-2007.03,0.00012989,2]
[338200426,1726384246420,-500.0,0.00012989,2]
[338200428,1726384246430,-2294.68,0.00012989,2]
[338200430,1726384246441,-665.93,0.00012989,2]
[338200432,1726384246452,-2810.04,0.00012989,2]
[338200435,1726384246463,-500.0,0.00012989,2]
[338200436,1726384246472,-500.0,0.00012989,2]
[338200437,1726384246483,-1904.58,0.00012989,2]
[338200438,1726384246493,-500.0,0.00012989,2]
[338200439,1726384246503,-500.0,0.00012989,2]
[338200440,1726384246512,-500.0,0.00012989,2]
[338200441,1726384246523,-2272.83,0.00012989,2]
[338200442,1726384246533,-500.0,0.00012989,2]
[338200443,1726384246543,-2268.58,0.00012989,2]
[338200444,1726384246554,-500.0,0.00012989,2]
[338200445,1726384246565,-866.72,0.00012989,2]
[338200446,1726384246576,-1278.16,0.00012989,2]
[338200447,1726384246588,-500.0,0.00012989,2]
[338200448,1726384246598,-500.0,0.00012989,2]
[338200449,1726384246610,-500.0,0.00012989,2]
[338200450,1726384246621,-500.0,0.00012989,2]
[338200451,1726384246632,-1721.43,0.00012989,2]
[338200452,1726384246642,-500.0,0.00012989,2]
[338200453,1726384246651,-2026.93,0.00012989,2]
[338200454,1726384246662,-500.0,0.00012989,2]
[338200455,1726384246672,-1467.58671065,0.00012989,2]
[338200456,1726384246681,-500.0,0.0001299,2]
[338200457,1726384246691,-500.0,0.0001299,2]
[338200458,1726384246700,-500.0,0.0001299,2]
[338200459,1726384246710,-895.86,0.0001299,2]
[338200460,1726384246719,-500.0,0.0001299,2]
[338200461,1726384246729,-500.0,0.0001299,2]
[338200462,1726384246739,-500.0,0.0001299,2]
[338200463,1726384246748,-596.13,0.0001299,2]
[338200464,1726384246758,-500.0,0.0001299,2]
[338200465,1726384246767,-654.53,0.0001299,2]
[338200466,1726384246777,-1105.66,0.0001299,2]
[338200467,1726384246787,-881.18,0.0001299,2]
[338200468,1726384246796,-766.29,0.0001299,2]
[338200469,1726384246806,-604.92,0.0001299,2]
[338200470,1726384246816,-552.88,0.0001299,2]
[338200471,1726384246826,-500.0,0.0001299,2]
[338200472,1726384246836,-718.65,0.0001299,2]
[338200474,1726384246846,-500.0,0.0001299,2]
[338200475,1726384246856,-541.98,0.0001299,2]
[338200477,1726384246866,-773.23,0.0001299,2]
[338200479,1726384246876,-500.0,0.0001299,2]
[338200481,1726384246887,-1626.51,0.0001299,2]
[338200483,1726384246897,-1310.19,0.0001299,2]
[338200485,1726384246908,-618.29,0.0001299,2]
[338200486,1726384246919,-1147.44,0.0001299,2]
[338200487,1726384246928,-2060.71,0.0001299,2]
[338200488,1726384246938,-500.0,0.0001299,2]
[338200489,1726384246948,-500.0,0.0001299,2]
[338200490,1726384246959,-500.0,0.0001299,2]
[338200491,1726384246969,-500.0,0.0001299,2]
[338200492,1726384246979,-500.0,0.0001299,2]
[338200493,1726384246988,-676.27,0.0001299,2]
[338200494,1726384246998,-500.0,0.0001299,2]
[338200495,1726384247008,-500.0,0.0001299,2]
[338200496,1726384247017,-675.72,0.0001299,2]
[338200497,1726384247027,-500.0,0.0001299,2]
[338200498,1726384247037,-2400.73,0.0001299,2]
[338200499,1726384247047,-752.95,0.0001299,2]
[338200508,1726384247057,-1094.37,0.0001299,2]
[338200509,1726384247273,-500.0,0.0001299,2]
[338200510,1726384247283,-500.0,0.0001299,2]
[338200511,1726384247293,-500.0,0.0001299,2]
[338200512,1726384247302,-776.87,0.0001299,2]
[338200513,1726384247311,-500.0,0.0001299,2]
[338200514,1726384247321,-2442.77,0.0001299,2]
[338200515,1726384247330,-500.0,0.0001299,2]
[338200516,1726384247339,-500.0,0.0001299,2]
[338200517,1726384247348,-1849.6,0.0001299,2]
[338200518,1726384247358,-500.0,0.0001299,2]
[338200519,1726384247368,-150.26677117,0.0001299,2]
[338200520,1726384247377,-633.12,0.0001299,2]
[338200521,1726384247386,-500.0,0.0001299,2]
[338200522,1726384247396,-583.51,0.0001299,2]
[338200523,1726384247406,-500.0,0.0001299,2]
[338200524,1726384247415,-500.0,0.0001299,2]
[338200525,1726384247425,-1821.92,0.0001299,2]
[338200526,1726384247434,-2664.32,0.0001299,2]
[338200527,1726384247444,-500.0,0.0001299,2]
[338200528,1726384247454,-791.47,0.0001299,2]
[338200529,1726384247466,-2101.0,0.0001299,2]
[338200530,1726384247477,-500.0,0.0001299,2]
[338200531,1726384247488,-1740.81,0.0001299,2]
[338200532,1726384247499,-576.29,0.0001299,2]
[338200533,1726384247509,-1145.55,0.0001299,2]
[338200534,1726384247519,-621.4,0.0001299,2]
[338200535,1726384247529,-560.37,0.0001299,2]
[338200536,1726384247538,-500.0,0.0001299,2]
[338200537,1726384247548,-1902.0,0.0001299,2]
[338200538,1726384247557,-500.0,0.0001299,2]
[338200539,1726384247567,-500.0,0.0001299,2]
[338200540,1726384247576,-581.47996118,0.0001299,2]
[338200541,1726384247586,-729.65,0.0001299,2]
[338200542,1726384247595,-1050.52,0.0001299,2]
[338200543,1726384247604,-816.91,0.0001299,2]
[338200544,1726384247613,-500.0,0.0001299,2]
[338200546,1726384247623,-150.0,0.0001299,2]
[338200548,1726384247632,-500.0,0.0001299,2]
[338200550,1726384247642,-500.0,0.0001299,2]
[338200552,1726384247652,-1869.52,0.0001299,2]
[338200554,1726384247661,-963.07,0.0001299,2]
[338200556,1726384247671,-500.0,0.0001299,2]
[338200558,1726384247680,-220.04290201,0.0001299,2]
[338200560,1726384247689,-1410.39,0.0001299,2]
[338200562,1726384247699,-500.0,0.0001299,2]
[338200564,1726384247709,-901.38,0.0001299,2]
[338200566,1726384247718,-767.88,0.0001299,2]
[338200568,1726384247728,-500.0,0.0001299,2]
[338200570,1726384247739,-500.0,0.0001299,2]
[338200571,1726384247748,-1158.27,0.0001299,2]
[338200573,1726384247757,-591.0,0.0001299,2]
[338200575,1726384247767,-673.83,0.0001299,2]
[338200577,1726384247776,-752.18,0.0001299,2]
[338200579,1726384247786,-559.69,0.0001299,2]
[338200581,1726384247795,-577.75,0.0001299,2]
[338200583,1726384247804,-1372.2,0.0001299,2]
[338200585,1726384247814,-1569.17,0.0001299,2]
[338200587,1726384247823,-152.51434,0.0001299,2]
[338200589,1726384247833,-153.149687,0.0001299,2]
[338200591,1726384247843,-1060.52,0.00013,2]
[338200593,1726384247853,-892.15,0.0001306,2]
[338200595,1726384247863,-500.0,0.0001306,2]
[338200596,1726384247872,-1327.12,0.0001306,2]
[338200597,1726384247882,-1991.31,0.0001306,2]
[338200598,1726384247891,-932.0,0.00013156,2]
[338200599,1726384247902,-150.0,0.00013156,2]
[338200600,1726384247913,-2612.13,0.0001316,2]
[338200601,1726384247924,-2142.44,0.0001316,2]
[338200602,1726384247934,-2259.49,0.0001316,2]
[338200603,1726384247944,-3198.65,0.0001316,2]
[338200604,1726384247954,-513.55,0.0001316,2]
[338200605,1726384247963,-1010.42,0.0001316,2]
[338200606,1726384247973,-2040.62,0.0001316,2]
[338200607,1726384247984,-2576.49,0.0001316,2]
[338200608,1726384247993,-1924.95,0.0001316,2]
[338200609,1726384248003,-7593.37,0.0001316,2]
[338200610,1726384248012,-3777.3,0.0001316,2]
[338200611,1726384248022,-2400.38,0.0001316,2]
[338200612,1726384248032,-3502.82,0.0001316,2]
[338200613,1726384248042,-2274.51,0.0001316,2]
[338200614,1726384248051,-1431.78,0.0001316,2]
[338200615,1726384248061,-1554.09,0.0001316,2]
[338200616,1726384248070,-643.4,0.0001316,2]
[338200617,1726384248080,-726.28,0.0001316,2]
[338200618,1726384248089,-1455.09,0.0001316,2]
[338200619,1726384248099,-647.23442534,0.00013162,2]
[338200620,1726384248108,-1285.85598382,0.00013162,2]
[338200621,1726384248118,-810.0,0.00013176,2]
[338200622,1726384248128,-553.0,0.00013176,2]
[338200623,1726384248139,-1902.0,0.00013176,2]
[338200624,1726384248150,-360.62380334,0.00013216,2]
[338200625,1726384248159,-1617.81,0.0001326,2]
[338200626,1726384248169,-669.37,0.0001326,2]
[338200627,1726384248179,-35123.66,0.0001326,2]
[338200628,1726384248189,-2816.45,0.0001326,2]
[338200629,1726384248198,-1751.71,0.0001326,2]
[338200630,1726384248208,-749.92,0.0001326,2]
[338200631,1726384248217,-1762.77,0.0001326,2]
[338200632,1726384248227,-1211.63,0.0001326,2]
[338200633,1726384248238,-2067.45,0.0001326,2]
[338200634,1726384248248,-4082.75,0.0001326,2]
[338200635,1726384248258,-2802.8,0.0001326,2]
[338200636,1726384248267,-6431.45,0.0001326,2]
[338200637,1726384248276,-1193.29,0.00013261,2]
[338200638,1726384248286,-1622.18,0.00013261,2]
[338200639,1726384248295,-500.0,0.00013261,2]
[338200640,1726384248304,-500.0,0.00013261,2]
[338200641,1726384248313,-1114.1,0.00013261,2]
[338200642,1726384248322,-2473.14,0.00013261,2]
[338200643,1726384248331,-500.0,0.00013261,2]
[338200644,1726384248341,-500.0,0.00013261,2]
[338200645,1726384248350,-763.18,0.00013261,2]
[338200646,1726384248360,-2641.77,0.00013261,2]
[338200647,1726384248370,-500.0,0.00013261,2]
[338200648,1726384248379,-500.0,0.00013261,2]
[338200649,1726384248389,-500.0,0.00013261,2]
[338200650,1726384248400,-1385.34,0.00013261,2]
[338200651,1726384248410,-2337.06,0.00013261,2]
[338200653,1726384248419,-1308.81,0.00013261,2]
[338200655,1726384248429,-500.0,0.00013261,2]
[338200657,1726384248439,-500.0,0.00013261,2]
[338200659,1726384248448,-3482.22,0.00013261,2]
[338200661,1726384248458,-500.0,0.00013261,2]
[338200663,1726384248467,-1780.69,0.00013261,2]
[338200665,1726384248477,-851.26,0.00013261,2]
[338200667,1726384248487,-500.0,0.00013261,2]
[338200669,1726384248496,-1609.35,0.00013261,2]
[338200671,1726384248506,-500.0,0.00013261,2]
[338200673,1726384248515,-762.47,0.00013261,2]
[338200675,1726384248524,-500.0,0.00013261,2]
[338200677,1726384248534,-1864.22,0.00013261,2]
[338200679,1726384248543,-500.0,0.00013261,2]
[338200680,1726384248552,-2095.35,0.00013261,2]
[338200681,1726384248561,-500.0,0.00013261,2]
[338200682,1726384248571,-4443.52,0.00013261,2]
[338200683,1726384248580,-500.0,0.00013261,2]
[338200684,1726384248590,-2011.54,0.00013261,2]
[338200685,1726384248599,-435.32051753,0.00013261,2]
[338200686,1726384248610,-1302.52,0.00013261,2]
[338200687,1726384248619,-500.0,0.00013261,2]
[338200688,1726384248628,-500.0,0.00013261,2]
[338200689,1726384248638,-737.59,0.00013261,2]
[338200690,1726384248648,-500.0,0.00013261,2]
[338200691,1726384248657,-852.99,0.00013261,2]
[338200692,1726384248666,-2650.81,0.00013261,2]
[338200693,1726384248676,-1974.55,0.00013261,2]
[338200694,1726384248686,-500.0,0.00013261,2]
[338200695,1726384248695,-500.0,0.00013261,2]
[338200696,1726384248704,-500.0,0.00013261,2]
[338200697,1726384248714,-500.0,0.00013261,2]
[338200698,1726384248724,-601.69,0.00013261,2]
[338200699,1726384248734,-500.0,0.00013261,2]
[338200700,1726384248743,-519.7,0.00013261,2]
[338200701,1726384248753,-1283.13,0.00013261,2]
[338200702,1726384248762,-744.0,0.00013261,2]
[338200703,1726384248772,-1145.09,0.00013261,2]
[338200704,1726384248782,-894.31,0.00013261,2]
[338200705,1726384248792,-500.0,0.00013261,2]
[338200706,1726384248801,-500.0,0.00013261,2]
[338200707,1726384248812,-500.0,0.00013261,2]
[338200708,1726384248822,-709.45,0.00013261,2]
[338200709,1726384248832,-250.12829899,0.00013261,2]
[338200710,1726384248842,-500.0,0.00013261,2]
[338200711,1726384248852,-511.46,0.00013261,2]
[338200712,1726384248862,-836.9,0.00013261,2]
[338200713,1726384248872,-500.0,0.00013261,2]
[338200714,1726384248883,-2075.22,0.00013261,2]
[338200715,1726384248893,-902.45,0.00013261,2]
[338200716,1726384248903,-2120.69,0.00013261,2]
[338200717,1726384248913,-1755.42,0.00013261,2]
[338200718,1726384248923,-1023.95,0.00013261,2]
[338200719,1726384248932,-500.0,0.00013261,2]
[338200720,1726384248942,-1046.03,0.00013261,2]
[338200721,1726384248952,-500.0,0.00013261,2]
[338200722,1726384248961,-500.0,0.00013261,2]
[338200723,1726384248971,-500.0,0.00013261,2]
[338200724,1726384248981,-1560.2,0.00013261,2]
[338200725,1726384248991,-500.0,0.00013261,2]
[338200726,1726384249001,-500.0,0.00013261,2]
[338200727,1726384249011,-500.0,0.00013261,2]
[338200728,1726384249020,-500.0,0.00013261,2]
[338200729,1726384249030,-1566.56,0.00013261,2]
[338200730,1726384249039,-1747.39,0.00013261,2]
[338200731,1726384249049,-500.0,0.00013261,2]
[338200732,1726384249059,-500.0,0.00013261,2]
[338200733,1726384249069,-500.0,0.00013261,2]
[338200734,1726384249079,-500.0,0.00013261,2]
[338200735,1726384249088,-500.0,0.00013261,2]
[338200736,1726384249098,-892.45,0.00013261,2]
[338200737,1726384249108,-500.0,0.00013261,2]
[338200738,1726384249118,-735.78,0.00013261,2]
[338200739,1726384249129,-500.0,0.00013261,2]
[338200740,1726384249140,-571.19,0.00013261,2]
[338200741,1726384249150,-500.0,0.00013261,2]
[338200742,1726384249160,-500.0,0.00013261,2]
[338200743,1726384249171,-947.65,0.00013261,2]
[338200744,1726384249181,-500.0,0.00013261,2]
[338200745,1726384249191,-500.0,0.00013261,2]
[338200746,1726384249200,-500.0,0.00013261,2]
[338200747,1726384249212,-500.0,0.00013261,2]
[338200748,1726384249221,-500.0,0.00013261,2]
[338200749,1726384249231,-500.0,0.00013261,2]
[338200750,1726384249250,-500.0,0.00013261,2]
[338200751,1726384249260,-1036.25,0.00013261,2]
[338200752,1726384249270,-500.0,0.00013261,2]
[338200753,1726384249281,-500.0,0.00013261,2]
[338200754,1726384249292,-500.0,0.00013261,2]
[338200755,1726384249302,-2093.32,0.00013261,2]
[338200756,1726384249312,-500.0,0.00013261,2]
[338200757,1726384249323,-623.98,0.00013261,2]
[338200758,1726384249333,-500.0,0.00013261,2]
[338200759,1726384249343,-500.0,0.00013261,2]
[338200760,1726384249354,-500.0,0.00013261,2]
[338200761,1726384249363,-500.0,0.00013261,2]
[338200762,1726384249374,-500.0,0.00013261,2]
[338200763,1726384249383,-500.0,0.00013261,2]
[338200764,1726384249393,-504.45,0.00013261,2]
[338200765,1726384249403,-500.0,0.00013261,2]
[338200766,1726384249412,-500.0,0.00013261,2]
[338200767,1726384249423,-617.25964319,0.00013261,2]
[338200768,1726384249432,-500.0,0.00013261,2]
[338200769,1726384249442,-500.0,0.00013261,2]
[338200770,1726384249452,-500.0,0.00013261,2]
[338200771,1726384249462,-500.0,0.00013261,2]
[338200772,1726384249471,-500.0,0.00013261,2]
[338200773,1726384249483,-500.0,0.00013261,2]
[338200774,1726384249492,-500.0,0.00013261,2]
[338200775,1726384249502,-500.0,0.00013261,2]
[338200776,1726384249511,-1818.97,0.00013261,2]
[338200777,1726384249520,-2300.0,0.00013261,2]
[338200778,1726384249530,-524.14,0.00013261,2]
[338200779,1726384249540,-551.65,0.00013261,2]
[338200780,1726384249550,-623.94,0.00013261,2]
[338200781,1726384249559,-500.0,0.00013261,2]
[338200782,1726384249643,-500.0,0.00013261,2]
[338200783,1726384249652,-1981.5,0.00013261,2]
[338200784,1726384249661,-500.0,0.00013261,2]
[338200785,1726384249671,-850.82,0.00013261,2]
[338200786,1726384249680,-1273.76,0.00013261,2]
[338200787,1726384249690,-500.0,0.00013261,2]
[338200788,1726384249699,-550.95,0.00013261,2]
[338200789,1726384249708,-777.07,0.00013261,2]
[338200790,1726384249718,-1159.13,0.00013261,2]
[338200791,1726384249727,-1474.94,0.00013261,2]
[338200792,1726384249738,-500.0,0.00013261,2]
[338200793,1726384249747,-500.0,0.00013261,2]
[338200794,1726384249756,-559.73,0.00013261,2]
[338200795,1726384249766,-719.19,0.00013261,2]
[338200796,1726384249776,-500.0,0.00013261,2]
[338200797,1726384249785,-2610.8,0.00013261,2]
[338200798,1726384249794,-500.0,0.00013261,2]
[338200799,1726384249803,-500.0,0.00013261,2]
[338200800,1726384249813,-738.9,0.00013261,2]
[338200801,1726384249822,-1184.26,0.00013261,2]
[338200802,1726384249831,-1079.19,0.00013261,2]
[338200803,1726384249841,-1624.73,0.00013261,2]
[338200804,1726384249850,-500.0,0.00013261,2]
[338200805,1726384249859,-500.0,0.00013261,2]
[338200806,1726384249868,-500.0,0.00013261,2]
[338200807,1726384249877,-500.0,0.00013261,2]
[338200808,1726384249887,-686.14,0.00013261,2]
[338200809,1726384249896,-1209.79,0.00013261,2]
[338200810,1726384249906,-500.0,0.00013261,2]
[338200811,1726384249915,-576.58,0.00013261,2]
[338200812,1726384249924,-1332.15,0.00013261,2]
[338200813,1726384249934,-1855.53,0.00013261,2]
[338200814,1726384249943,-536.83,0.00013261,2]